fUSD/lending_fUSD_20240902
["ID","MTS","AMOUNT","RATE_DAILY","PERIOD"]
[336976918,1725270709451,-540.7390358,0.00019178,2]
[336976919,1725270709460,-817.36,0.00019178,2]
[336976920,1725270709470,-782.11,0.00019178,2]
[336976921,1725270709483,-500.0,0.00019178,2]
[336976922,1725270709492,-500.0,0.00019178,2]
[336976923,1725270709503,-782.11,0.00019178,2]
[336976924,1725270709512,-817.36,0.00019178,2]
[336976925,1725270709521,-500.0,0.00019178,2]
[336976926,1725270709531,-500.0,0.00019178,2]
[336976927,1725270709540,-966.96,0.00019178,2]
[336976928,1725270709550,-782.11,0.00019178,2]
[336976929,1725270709559,-817.36,0.00019178,2]
[336976930,1725270709568,-500.0,0.00019178,2]
[336976931,1725270709577,-966.96,0.00019178,2]
[336976932,1725270709587,-500.0,0.00019178,2]
[336976933,1725270709596,-782.11,0.00019178,2]
[336976934,1725270709605,-817.36,0.00019178,2]
[336976935,1725270709614,-500.0,0.00019178,2]
[336976936,1725270709622,-967.13635858,0.00019178,2]
[336976937,1725270709631,-500.0,0.00019178,2]
[336976938,1725270709642,-782.11,0.00019178,2]
[336976939,1725270709650,-817.36,0.00019178,2]
[336976940,1725270709659,-500.0,0.00019178,2]
[336976941,1725270709671,-500.0,0.00019178,2]
[336976942,1725270709680,-782.11,0.00019178,2]
[336976943,1725270709689,-817.36,0.00019178,2]
[336976944,1725270709698,-196.27478335,0.00019178,2]
[336976945,1725270709707,-500.0,0.00019178,2]
[336976946,1725270709716,-782.11,0.00019178,2]
[336976947,1725270709726,-817.36,0.00019178,2]
[336976948,1725270709735,-500.0,0.00019178,2]
[336976949,1725270709744,-782.11,0.00019178,2]
[336976950,1725270709753,-817.36,0.00019178,2]
[336976951,1725270709762,-500.0,0.00019178,2]
[336976952,1725270709771,-782.11,0.00019178,2]
[336976953,1725270709780,-817.36,0.00019178,2]
[336976954,1725270709789,-640.53,0.00019178,2]
[336976955,1725270709799,-782.11,0.00019178,2]
[336976956,1725270709808,-817.36,0.00019178,2]
[336976957,1725270709818,-640.53,0.00019178,2]
[336976958,1725270709827,-817.36,0.00019178,2]
[336976959,1725270709836,-640.53,0.00019178,2]
[336976960,1725270709845,-782.11,0.00019178,2]
[336976961,1725270709855,-817.36,0.00019178,2]
[336976962,1725270709864,-640.53,0.00019178,2]
[336976963,1725270709873,-782.11,0.00019178,2]
[336976964,1725270709882,-817.36,0.00019178,2]
[336976965,1725270709892,-640.53,0.00019178,2]
[336976966,1725270709901,-782.11,0.00019178,2]
[336976967,1725270709911,-640.53,0.00019178,2]
[336976968,1725270709923,-817.36,0.00019178,2]
[336976969,1725270709933,-782.11,0.00019178,2]
[336976970,1725270709942,-640.53,0.00019178,2]
[336976971,1725270709952,-817.36,0.00019178,2]
[336976972,1725270709961,-782.11,0.00019178,2]
[336976973,1725270709970,-640.53,0.00019178,2]
[336976974,1725270709979,-817.36,0.00019178,2]
[336976975,1725270709988,-500.0,0.00019178,2]
[336976976,1725270709998,-782.11,0.00019178,2]
[336976977,1725270710007,-640.53,0.00019178,2]
[336976978,1725270710016,-500.0,0.00019178,2]
[336976979,1725270710026,-817.36,0.00019178,2]
[336976980,1725270710035,-500.0,0.00019178,2]
[336976981,1725270710044,-782.14402108,0.00019178,2]
[336976982,1725270710053,-640.53,0.00019178,2]
[336976983,1725270710062,-500.0,0.00019178,2]
[336976984,1725270710071,-500.0,0.00019178,2]
[336976985,1725270710081,-640.53,0.00019178,2]
[336976986,1725270710090,-817.36,0.00019178,2]
[336976987,1725270710099,-500.0,0.00019178,2]
[336976988,1725270710110,-500.0,0.00019178,2]
[336976989,1725270710119,-640.53,0.00019178,2]
[336976990,1725270710128,-500.0,0.00019178,2]
[336976991,1725270710137,-500.0,0.00019178,2]
[336976992,1725270710147,-817.36,0.00019178,2]
[336976993,1725270710156,-640.53,0.00019178,2]
[336976994,1725270710165,-500.0,0.00019178,2]
[336976995,1725270710178,-500.0,0.00019178,2]
[336976996,1725270710188,-817.36,0.00019178,2]
[336976997,1725270710197,-640.53,0.00019178,2]
[336976998,1725270710207,-500.0,0.00019178,2]
[336976999,1725270710216,-500.0,0.00019178,2]
[336977000,1725270710225,-817.36,0.00019178,2]
[336977001,1725270710235,-640.53,0.00019178,2]
[336977002,1725270710244,-500.0,0.00019178,2]
[336977003,1725270710253,-500.0,0.00019178,2]
[336977004,1725270710263,-817.36,0.00019178,2]
[336977005,1725270710272,-242.04689214,0.00019178,2]
[336977006,1725270710281,-500.0,0.00019178,2]
[336977007,1725270710291,-817.36,0.00019178,2]
[336977008,1725270710300,-640.53,0.00019178,2]
[336977009,1725270710310,-281.96909948,0.00019178,2]
[336977010,1725270710319,-817.38354881,0.00019178,2]
[336977011,1725270710329,-640.53,0.00019178,2]
[336977012,1725270710338,-640.53,0.00019178,2]
[336977013,1725270710348,-640.53,0.00019178,2]
[336977014,1725270710357,-640.53,0.00019178,2]
[336977015,1725270710366,-151.0,0.00019178,2]
[336977016,1725270710376,-640.53,0.00019178,2]
[336977017,1725270710385,-640.53,0.00019178,2]
[336977018,1725270710395,-151.0,0.00019178,2]
[336977019,1725270710405,-640.53,0.00019178,2]
[336977020,1725270710414,-151.0,0.00019178,2]
[336977021,1725270710426,-500.0,0.00019178,2]
[336977022,1725270710435,-419.3974769,0.00019178,2]
[336977023,1725270710444,-640.53,0.00019178,2]
[336977024,1725270710454,-151.0,0.00019178,2]
[336977025,1725270710463,-500.0,0.00019178,2]
[336977026,1725270710474,-200.0,0.00019178,2]
[336977027,1725270710483,-200.0,0.00019178,2]
[336977028,1725270710492,-200.0,0.00019178,2]
[336977029,1725270710501,-200.0,0.00019178,2]
[336977030,1725270710511,-200.0,0.00019178,2]
[336977031,1725270710521,-200.0,0.00019178,2]
[336977032,1725270710530,-191.0,0.00019178,2]
[336977033,1725270710540,-22737.84,0.00019178,2]
[336977034,1725270710551,-60760.1,0.00019178,2]
[336977035,1725270710560,-151.0,0.00019178,2]
[336977036,1725270710570,-170.696,0.00019178,2]
[336977037,1725270710580,-300.0,0.00019196,2]
[336977038,1725270710589,-26841.17,0.000192,2]
[336977039,1725270710599,-726.038423,0.00019221,2]
[336977040,1725270710608,-2000.0,0.00019292,2]
[336977041,1725270710618,-200.0,0.00019292,2]
[336977042,1725270710627,-195.53,0.00019303,2]
[336977043,1725270710637,-209.0,0.0001931,2]
[336977044,1725270710647,-493.13107043,0.00019316,2]
[336977045,1725270710657,-9460.24,0.00019339,2]
[336977046,1725270710666,-203.0,0.0001937,30]
[336977047,1725270710678,-1259.0,0.00019372,2]
[336977048,1725270710688,-624.731,0.00019372,2]
[336977049,1725270710697,-449.915,0.00019372,2]
[336977050,1725270710706,-1545.0,0.00019372,2]
[336977051,1725270710715,-930.0,0.00019372,2]
[336977052,1725270710725,-810.0,0.00019372,2]
[336977053,1725270710734,-665.996,0.00019372,2]
[336977054,1725270710743,-169.143,0.00019372,2]
[336977055,1725270710753,-207.615,0.00019372,2]
[336977056,1725270710764,-552.0,0.00019372,2]
[336977057,1725270710773,-1899.0,0.00019372,2]
[336977058,1725270710783,-1923.158,0.00019372,2]
[336977059,1725270710793,-1139.0,0.00019372,2]
[336977060,1725270710802,-248.632,0.00019372,2]
[336977061,1725270710812,-805.0,0.00019372,2]
[336977062,1725270710821,-3340.0,0.00019372,2]
[336977063,1725270710831,-13463.0,0.00019372,2]
[336977064,1725270710840,-173.266,0.00019372,2]
[336977065,1725270710850,-1144.0,0.00019372,2]
[336977066,1725270710860,-5854.0,0.00019372,2]
[336977067,1725270710869,-3732.0,0.00019372,2]
[336977068,1725270710879,-150.0,0.00019372,2]
[336977069,1725270710889,-1078.0,0.00019372,2]
[336977070,1725270710899,-150.309,0.00019372,2]
[336977071,1725270710909,-203.0,0.0001938,30]
[336977072,1725270710919,-203.0,0.0001938,30]
[336977073,1725270710928,-203.0,0.0001939,30]
[336977074,1725270710938,-203.0,0.0001939,30]
[336977075,1725270710947,-726.038423,0.00019391,2]
[336977076,1725270710957,-1251.40635239,0.000194,3]
[336977077,1725270710966,-1251.4063524,0.000194,3]
[336977078,1725270710976,-300.0,0.000194,2]
[336977079,1725270710986,-255.0,0.000194,2]
[336977080,1725270710995,-207.99035,0.00019452,2]
[336977081,1725270711004,-493.13107043,0.00019462,2]
[336977082,1725270711014,-2000.0,0.00019485,2]
[336977083,1725270711023,-200.0,0.00019485,2]
[336977084,1725270711033,-273.64164884,0.00019489,2]
[336977085,1725270711042,-300.0,0.000195,2]
[336977086,1725270711051,-2711.67910393,0.000195,14]
[336977087,1725270711060,-506.90338969,0.00019521,2]
[336977088,1725270711070,-1000.0,0.00019521,2]
[336977089,1725270711080,-726.038423,0.00019561,2]
[336977090,1725270711090,-301.01168878,0.000196,2]
[336977091,1725270711099,-493.13107043,0.00019608,2]
[336977092,1725270711108,-209.0,0.0001963,2]
[336977093,1725270711120,-168.793,0.0001964,2]
[336977094,1725270711130,-2000.0,0.0001968,2]
[336977095,1725270711139,-200.0,0.0001968,2]
[336977096,1725270711148,-175.0,0.00019699,2]
[336977097,1725270711158,-202.11762508,0.000197,2]
[336977098,1725270711167,-410.0,0.00019726,2]
[336977099,1725270711176,-726.038423,0.0001973,2]
[336977100,1725270711186,-493.13107043,0.00019754,2]
[336977101,1725270711195,-150.0,0.00019881,2]
[336977102,1725270711204,-150.0,0.00019881,2]
[336977103,1725270711213,-150.0,0.00019881,2]
[336977104,1725270711222,-8500.0,0.00019882,2]
[336977105,1725270711232,-8500.0,0.00019891,2]
[336977106,1725270711241,-20415.0,0.00019892,2]
[336977107,1725270711252,-35000.0,0.000199,2]
[336977108,1725270711261,-8500.0,0.000199,2]
[336977109,1725270711271,-400.54720183,0.000199,2]
[336977110,1725270711281,-493.13107043,0.000199,2]
[336977111,1725270711291,-726.038423,0.000199,2]
[336977112,1725270711301,-11579.34619795,0.000199,2]
[336977113,1725270711311,-11579.34619794,0.000199,2]
[336977114,1725270711321,-11579.34619794,0.000199,2]
[336977115,1725270711330,-273.64164884,0.000199,2]
[336977116,1725270711339,-209.0,0.0001995,2]
[336977117,1725270711349,-479.79127531,0.00019973,2]
[336977118,1725270711358,-212.44,0.00019979,30]
[336977119,1725270711368,-14206.2384299,0.00019986,2]
[336977120,1725270711377,-13130.3440431,0.00019986,2]
[336977121,1725270711387,-12054.4496562,0.00019986,2]
[336977122,1725270711396,-10978.5552694,0.00019986,2]
[336977123,1725270711405,-9902.6608825,0.00019986,2]
[336977124,1725270711415,-4327.7443708,0.00019986,2]
[336977125,1725270711426,-3999.987245,0.00019986,2]
[336977126,1725270711435,-3672.2301192,0.00019986,2]
[336977127,1725270711444,-3344.4729934,0.00019986,2]
[336977128,1725270711455,-3016.7158676,0.00019986,2]
[336977129,1725270711467,-36640.1032501,0.00019986,2]
[336977130,1725270711480,-31895.205746,0.00019986,2]
[336977131,1725270711490,-27150.3082419,0.00019986,2]
[336977132,1725270711499,-22405.4107379,0.00019986,2]
[336977133,1725270711508,-17660.5132338,0.00019986,2]
[336977134,1725270711518,-22538.5570062,0.00019986,2]
[336977135,1725270711528,-22849.5859642,0.00019986,2]
[336977136,1725270711538,-23160.6149222,0.00019986,2]
[336977137,1725270711547,-23471.6438802,0.00019986,2]
[336977138,1725270711556,-23782.6728382,0.00019986,2]
[336977139,1725270711566,-203.0,0.00019989,30]
[336977140,1725270711575,-7206.02222982,0.00019997,2]
[336977141,1725270711585,-382.24526023,0.00019999,2]
[336977142,1725270711594,-7852.05345087,0.00019999,2]
[336977143,1725270711603,-1041328.15595852,0.0002,15]
[336977144,1725270713462,-167218.65711247,0.0002,15]
[336977145,1725270713477,-103846.1453816,0.0002,15]
[336977146,1725270713488,-152352.19577013,0.0002,15]
[336977147,1725270713504,-500.0,0.00019178,2]
[336977148,1725270713514,-313.78799327,0.0002,15]
[336977149,1725270713525,-250752.86481741,0.0002,15]
[336977150,1725270713537,-403.47012699,0.0002,15]
[336977151,1725270713550,-1560.09201501,0.0002,15]
[336977152,1725270713562,-655.39084269,0.0002,15]
[336977153,1725270713573,-568.13080662,0.0002,15]
[336977154,1725270713592,-151.0,0.00019178,2]
[336977155,1725270713601,-9159.25255309,0.0002,15]
[336977156,1725270713651,-330.15894908,0.0002,15]
[336977157,1725270713762,-151.0,0.00018812,2]
[336977158,1725270713772,-223.05431131,0.00018819,2]
[336977159,1725270713783,-480.758087,0.00018819,2]
[336977160,1725270713795,-500.0,0.00018819,2]
[336977161,1725270713831,-1535.85323252,0.00018819,2]
[336977162,1725270713843,-4831.27098403,0.00018819,2]
[336977163,1725270713852,-151.0,0.00018912,2]
[336977164,1725270713861,-151.0,0.00018949,2]
[336977165,1725270713871,-151.0,0.00019175,2]
[336977166,1725270713880,-500.0,0.00019178,2]
[336977167,1725270713889,-151.0,0.00019178,2]
[336977168,1725270713898,-513.03067151,0.00019178,2]
[336977169,1725270713908,-275.045784,0.00019178,2]
[336977170,1725270713917,-1167.33961765,0.0002,15]
[336977171,1725270713934,-1399.42711989,0.0002,15]
[336977172,1725270714831,-935.21484251,0.0002,15]
[336977173,1725270714842,-47503.90500939,0.0002,15]
[336977174,1725270714854,-8823.6328315,0.0002,15]
[336977175,1725270714864,-416.359999,0.0002,15]
[336977176,1725270714876,-336.09578497,0.0002,15]
[336977177,1725270714887,-607.00378439,0.0002,15]
[336977178,1725270714955,-789.99,0.0002,15]
[336977179,1725270714966,-1858.93673647,0.0002,15]
[336977180,1725270715004,-466566.44931344,0.0002,15]
[336977181,1725270715056,-33499.91300064,0.0002,15]
[336977182,1725270715067,-2240.0,0.0002,15]
[336977183,1725270715079,-4063.59449961,0.0002,15]
[336977184,1725270715227,-924.63651911,0.0002,15]
[336977185,1725270715239,-1882.07323999,0.0002,15]
[336977186,1725270715250,-2272.5,0.0002,15]
[336977187,1725270715261,-4998.0,0.0002,15]
[336977188,1725270715271,-459.58986104,0.0002,15]
[336977189,1725270715282,-542.79318473,0.0002,15]
[336977190,1725270715293,-1004.84499967,0.0002,15]
[336977191,1725270715304,-892.54323916,0.0002,15]
[336977192,1725270715314,-607.97134023,0.0002,15]
[336977193,1725270715325,-4566.43182891,0.0002,15]
[336977194,1725270715336,-5334.53403773,0.0002,15]
[336977195,1725270715347,-13959.16703489,0.0002,15]
[336977196,1725270715358,-2907.25,0.0002,15]
[336977197,1725270715368,-15702.08710001,0.0002,15]
[336977198,1725270715379,-4904.9682,0.0002,15]
[336977199,1725270715392,-858.99079704,0.0002,15]
[336977200,1725270715403,-1078.86690279,0.0002,15]
[336977201,1725270715459,-2414.68677028,0.0002,15]
[336977202,1725270715474,-626.63918629,0.0002,15]
[336977203,1725270715486,-511.09156936,0.0002,15]
[336977204,1725270715497,-29822.85706353,0.0002,15]
[336977205,1725270715508,-930.0,0.0002,15]
[336977206,1725271097409,156.83,0.00010959,2]
[336977208,1725271146519,286.98,0.00026759,120]
[336977209,1725271397224,587.01,0.000132,2]
[336977212,1725271609269,151.84,0.00010959,2]
[336977216,1725271698395,169.51,0.00026103,120]
[336977238,1725271832177,-346.81,0.00015645,2]
[336977239,1725271832187,-83.0642519,0.00017369,2]
[336977240,1725271832198,-116.9357481,0.00017369,2]
[336977241,1725271832207,-261.32034414,0.00017374,2]
[336977242,1725271832217,-621.77146932,0.00017374,2]
[336977243,1725271832229,-582.57785601,0.00017374,2]
[336977244,1725271832240,-450.25,0.00017374,2]
[336977245,1725271832254,-835.08033053,0.00017374,2]
[336977246,1725271832263,-338.90721678,0.00017386,2]
[336977247,1725271832274,-581.7025084,0.00017386,2]
[336977248,1725271832286,-139.76027482,0.00017386,2]
[336977249,1725271832295,-150.0,0.0001739,2]
[336977250,1725271832303,-169.51,0.00017402,2]
[336977251,1725271832312,-562.42,0.00017415,2]
[336977252,1725271832321,-194.76,0.00017432,2]
[336977253,1725271832331,-250.0,0.00017441,2]
[336977254,1725271832340,-499.99,0.00017441,2]
[336977255,1725271832349,-250.0,0.00017456,2]
[336977256,1725271832359,-300.0,0.00017473,2]
[336977257,1725271832368,-2827.89,0.00017474,2]
[336977258,1725271832378,-1112.61,0.00017487,2]
[336977259,1725271832387,-3395.91381518,0.00017554,2]
[336977260,1725271832398,-397.0817629,0.00017554,2]
[336977261,1725271832409,-1300.99,0.00017554,2]
[336977262,1725271832425,-18806.01442192,0.00017554,2]
[336977263,1725271832435,-250.0,0.00017578,2]
[336977264,1725271832444,-200.0,0.00017583,2]
[336977265,1725271832454,-151.84,0.00017592,2]
[336977266,1725271832463,-150.39,0.00017622,2]
[336977267,1725271832475,-1000.0,0.00017627,2]
[336977268,1725271832485,-151.38,0.00017784,2]
[336977269,1725271832495,-286.98,0.0001784,2]
[336977271,1725271832504,-180.71,0.0001789,2]
[336977272,1725271832514,-346.81,0.00017909,2]
[336977273,1725271832523,-167.01,0.000183,2]
[336977274,1725271832533,-600.0,0.00018599,2]
[336977275,1725271832542,-600.0,0.00018599,2]
[336977276,1725271832552,-600.0,0.00018599,2]
[336977277,1725271832561,-600.0,0.00018603,2]
[336977278,1725271832571,-600.0,0.00018603,2]
[336977280,1725271832580,-300.0,0.00018772,2]
[336977282,1725271832589,-5854.0,0.00018851,2]
[336977284,1725271832598,-150.0,0.00018851,2]
[336977286,1725271832607,-9022.031,0.00018851,2]
[336977288,1725271832616,-3732.0,0.00018851,2]
[336977290,1725271832625,-1144.0,0.00018851,2]
[336977291,1725271832635,-180.71,0.00018874,2]
[336977292,1725271832645,-877.0,0.000189,2]
[336977293,1725271832654,-167.01,0.00019055,2]
[336977294,1725271832666,-420.0,0.00019075,2]
[336977295,1725271832675,-2991.31715612,0.00019078,2]
[336977296,1725271832684,-5003.8197,0.00019078,2]
[336977297,1725271832694,-1000.0,0.00019078,2]
[336977298,1725271832703,-19180.4769,0.00019078,2]
[336977299,1725271832712,-1421.1578,0.00019078,2]
[336977300,1725271832723,-402.9647,0.00019078,2]
[336977301,1725271832732,-1425.8098,0.00019078,2]
[336977302,1725271832741,-801.5619,0.00019078,2]
[336977303,1725271832751,-213.8049,0.00019078,2]
[336977304,1725271832761,-150.0,0.000191,2]
[336977305,1725271832770,-1202.0,0.000191,2]
[336977306,1725271832779,-170.0,0.00019168,30]
[336977307,1725271832788,-2991.31715606,0.00019169,2]
[336977308,1725271832798,-500.0,0.00019173,2]
[336977309,1725271832807,-160.14315153,0.00019173,2]
[336977310,1725271832817,-158.64013153,0.00019173,2]
[336977311,1725271832826,-300.0,0.00019174,5]
[336977312,1725271832839,-500.0,0.00019178,2]
[336977313,1725271832848,-500.0,0.00019178,2]
[336977314,1725271832857,-500.0,0.00019178,2]
[336977315,1725271832866,-500.0,0.00019178,2]
[336977316,1725271832877,-500.0,0.00019178,2]
[336977317,1725271832887,-500.0,0.00019178,2]
[336977318,1725271832896,-500.0,0.00019178,2]
[336977319,1725271832905,-500.0,0.00019178,2]
[336977320,1725271832916,-500.0,0.00019178,2]
[336977321,1725271832926,-500.0,0.00019178,2]
[336977322,1725271832935,-500.0,0.00019178,2]
[336977323,1725271832945,-500.0,0.00019178,2]
[336977324,1725271832955,-500.0,0.00019178,2]
[336977325,1725271832964,-500.0,0.00019178,2]
[336977326,1725271832973,-500.0,0.00019178,2]
[336977327,1725271832983,-500.0,0.00019178,2]
[336977328,1725271832992,-372.24080519,0.00019178,2]
[336977329,1725271833002,-843.83,0.00019178,2]
[336977330,1725271833011,-843.83,0.00019178,2]
[336977331,1725271833020,-843.83,0.00019178,2]
[336977332,1725271833029,-843.83,0.00019178,2]
[336977333,1725271833039,-843.83,0.00019178,2]
[336977334,1725271833048,-843.83,0.00019178,2]
[336977335,1725271833058,-843.83,0.00019178,2]
[336977336,1725271833067,-843.83,0.00019178,2]
[336977337,1725271833076,-843.83,0.00019178,2]
[336977338,1725271833086,-843.83,0.00019178,2]
[336977339,1725271833095,-843.83,0.00019178,2]
[336977340,1725271833104,-843.83,0.00019178,2]
[336977341,1725271833113,-843.83,0.00019178,2]
[336977342,1725271833122,-843.83,0.00019178,2]
[336977343,1725271833132,-843.83,0.00019178,2]
[336977344,1725271833141,-843.83,0.00019178,2]
[336977345,1725271833151,-843.83,0.00019178,2]
[336977346,1725271833160,-843.83,0.00019178,2]
[336977347,1725271833170,-843.83,0.00019178,2]
[336977348,1725271833179,-843.83,0.00019178,2]
[336977349,1725271833189,-843.83,0.00019178,2]
[336977350,1725271833199,-843.83,0.00019178,2]
[336977351,1725271833208,-843.83,0.00019178,2]
[336977352,1725271833217,-843.85182903,0.00019178,2]
[336977353,1725271833227,-1067.55,0.00019178,2]
[336977354,1725271833237,-1067.55,0.00019178,2]
[336977355,1725271833247,-1067.55,0.00019178,2]
[336977356,1725271833256,-1067.55,0.00019178,2]
[336977357,1725271833265,-1067.55,0.00019178,2]
[336977358,1725271833275,-1067.55,0.00019178,2]
[336977359,1725271833284,-1067.55,0.00019178,2]
[336977360,1725271833294,-1067.55,0.00019178,2]
[336977361,1725271833303,-1067.55,0.00019178,2]
[336977362,1725271833312,-1067.55,0.00019178,2]
[336977363,1725271833321,-1067.55,0.00019178,2]
[336977364,1725271833331,-1067.55,0.00019178,2]
[336977365,1725271833341,-1067.55,0.00019178,2]
[336977366,1725271833350,-1067.55,0.00019178,2]
[336977367,1725271833360,-1067.55,0.00019178,2]
[336977368,1725271833369,-1067.55,0.00019178,2]
[336977369,1725271833379,-1067.55,0.00019178,2]
[336977370,1725271833389,-1067.55,0.00019178,2]
[336977371,1725271833398,-1067.55,0.00019178,2]
[336977372,1725271833408,-1067.55,0.00019178,2]
[336977373,1725271833417,-1067.55,0.00019178,2]
[336977374,1725271833426,-1067.55,0.00019178,2]
[336977375,1725271833435,-1067.55,0.00019178,2]
[336977376,1725271833445,-1067.55981503,0.00019178,2]
[336977377,1725271833454,-500.0,0.00019178,2]
[336977378,1725271833464,-500.0,0.00019178,2]
[336977379,1725271833475,-622.87,0.00019178,2]
[336977380,1725271833485,-826.89,0.00019178,2]
[336977381,1725271833494,-826.89,0.00019178,2]
[336977382,1725271833504,-826.89,0.00019178,2]
[336977383,1725271833513,-826.89,0.00019178,2]
[336977384,1725271833523,-826.89,0.00019178,2]
[336977385,1725271833533,-826.89,0.00019178,2]
[336977386,1725271833543,-826.89,0.00019178,2]
[336977387,1725271833552,-826.89,0.00019178,2]
[336977388,1725271833562,-826.89,0.00019178,2]
[336977389,1725271833571,-826.89,0.00019178,2]
[336977390,1725271833580,-826.89,0.00019178,2]
[336977391,1725271833590,-826.89,0.00019178,2]
[336977392,1725271833600,-826.89,0.00019178,2]
[336977393,1725271833610,-826.89,0.00019178,2]
[336977394,1725271833620,-826.89,0.00019178,2]
[336977395,1725271833630,-826.89,0.00019178,2]
[336977396,1725271833640,-826.89,0.00019178,2]
[336977397,1725271833649,-826.89,0.00019178,2]
[336977398,1725271833659,-826.89,0.00019178,2]
[336977399,1725271833667,-826.89,0.00019178,2]
[336977400,1725271833676,-826.89,0.00019178,2]
[336977401,1725271833686,-826.89,0.00019178,2]
[336977402,1725271833699,-826.89,0.00019178,2]
[336977403,1725271833707,-826.95233778,0.00019178,2]
[336977404,1725271833716,-500.0,0.00019178,2]
[336977405,1725271833727,-500.0,0.00019178,2]
[336977406,1725271833736,-500.0,0.00019178,2]
[336977407,1725271833746,-698.14,0.00019178,2]
[336977408,1725271833755,-835.86,0.00019178,2]
[336977409,1725271833764,-500.0,0.00019178,2]
[336977410,1725271833774,-500.0,0.00019178,2]
[336977411,1725271833783,-574.88,0.00019178,2]
[336977412,1725271833792,-500.0,0.00019178,2]
[336977413,1725271833801,-515.56,0.00019178,2]
[336977414,1725271833810,-873.41,0.00019178,2]
[336977415,1725271833820,-500.0,0.00019178,2]
[336977416,1725271833831,-816.17,0.00019178,2]
[336977417,1725271833841,-500.0,0.00019178,2]
[336977418,1725271833851,-1196.0,0.00019178,2]
[336977419,1725271833860,-535.28,0.00019178,2]
[336977420,1725271833870,-500.0,0.00019178,2]
[336977421,1725271833879,-2084.48,0.00019178,2]
[336977422,1725271833889,-2991.31715606,0.00019261,2]
[336977423,1725271833898,-2991.31715606,0.00019352,2]
[336977424,1725271833909,-528.1034647,0.000194,3]
[336977425,1725271833918,-600.0,0.000194,2]
[336977426,1725271833928,-600.0,0.000194,2]
[336977427,1725271833938,-600.0,0.000194,2]
[336977428,1725271833947,-600.0,0.000194,2]
[336977429,1725271833957,-600.0,0.000194,2]
[336977430,1725271833966,-600.0,0.000194,2]
[336977431,1725271833977,-600.0,0.000194,2]
[336977432,1725271833987,-2991.31715606,0.00019443,2]
[336977433,1725271833996,-447.0,0.00019531,2]
[336977434,1725271834007,-1259.0,0.00019531,2]
[336977435,1725271834016,-1545.0,0.00019531,2]
[336977436,1725271834025,-652.771,0.00019531,2]
[336977437,1725271834035,-810.0,0.00019531,2]
[336977438,1725271834044,-150.0,0.00019531,2]
[336977439,1725271834054,-557.0,0.00019531,2]
[336977440,1725271834063,-930.0,0.00019531,2]
[336977441,1725271834072,-552.0,0.00019531,2]
[336977442,1725271834082,-1899.0,0.00019531,2]
[336977443,1725271834091,-805.0,0.00019531,2]
[336977444,1725271834100,-1921.0,0.00019531,2]
[336977445,1725271834110,-1139.0,0.00019531,2]
[336977446,1725271834119,-248.0,0.00019531,2]
[336977447,1725271834128,-3340.0,0.00019531,2]
[336977448,1725271834138,-500.0,0.00019532,2]
[336977449,1725271834147,-500.0,0.00019532,2]
[336977450,1725271834157,-500.0,0.00019532,2]
[336977451,1725271834167,-500.0,0.00019532,2]